fUSD/lending_fUSD_20250504
["ID","MTS","AMOUNT","RATE_DAILY","PERIOD"]
[359828807,1746360658639,-28603.87,0.00019917,2]
[359828809,1746360658649,-450.0,0.00019917,2]
[359828811,1746360658658,-1463.69,0.00019917,2]
[359828813,1746360658667,-453.46043144,0.00019917,2]
[359828841,1746360658923,-450.0,0.00019726,2]
[359828843,1746360658933,-463.44956856,0.00019917,2]
[359828845,1746360658943,-637.41,0.00019917,2]
[359828847,1746360658952,-2659.44,0.00019917,2]
[359828849,1746360658961,-450.0,0.00019917,2]
[359828851,1746360658973,-95.30043144,0.00019917,2]
[359828852,1746360658984,-4682.24956856,0.00019917,2]
[359828853,1746360658994,-2266.13,0.00019917,2]
[359828854,1746360659003,-450.0,0.00019917,2]
[359828855,1746360659013,-487.24,0.00019917,2]
[359828856,1746360659022,-500.0,0.00019944,2]
[359828857,1746360659032,-500.0,0.00019944,2]
[359828858,1746360659042,-450.0,0.00019945,2]
[359828859,1746360659052,-450.0,0.00019945,2]
[359828861,1746360659061,-510.99,0.00019945,2]
[359828862,1746360659072,-450.0,0.00019945,2]
[359828864,1746360659082,-629.87,0.00019945,2]
[359828866,1746360659091,-450.0,0.00019945,2]
[359828868,1746360659101,-450.0,0.00019945,2]
[359828871,1746360659111,-450.0,0.00019945,2]
[359828873,1746360659121,-900.42,0.00019945,2]
[359828875,1746360659130,-450.0,0.00019945,2]
[359828877,1746360659140,-450.0,0.00019945,2]
[359828879,1746360659151,-573.91,0.00019945,2]
[359828881,1746360659160,-450.0,0.00019945,2]
[359828883,1746360659170,-450.0,0.00019945,2]
[359828885,1746360659179,-539.41,0.00019945,2]
[359828887,1746360659189,-193.01,0.00019945,2]
[359828889,1746360659199,-450.0,0.00019945,2]
[359828891,1746360659208,-1044.73,0.00019945,2]
[359828893,1746360659219,-452.35,0.00019945,2]
[359828895,1746360659228,-450.0,0.00019945,2]
[359828897,1746360659238,-662.38,0.00019945,2]
[359828899,1746360659247,-511.77369467,0.00019945,2]
[359828901,1746360659257,-450.0,0.00019945,2]
[359828903,1746360659267,-538.42,0.00019945,2]
[359828905,1746360659277,-305.58125092,0.00019945,2]
[359828907,1746360659287,-1034.33,0.00019945,2]
[359828909,1746360659299,-526.99,0.00019945,2]
[359828911,1746360659309,-1032.73,0.00019945,2]
[359828913,1746360659318,-450.0,0.00019945,2]
[359828915,1746360659328,-514.22,0.00019945,2]
[359828917,1746360659337,-450.0,0.00019945,2]
[359828919,1746360659346,-450.0,0.00019945,2]
[359828921,1746360659356,-450.0,0.00019945,2]
[359828923,1746360659365,-450.0,0.00019945,2]
[359828925,1746360659377,-883.23,0.00019945,2]
[359828927,1746360659387,-2359.28,0.00019945,2]
[359828929,1746360659397,-441.43,0.00019945,2]
[359828931,1746360659406,-693.57,0.00019945,2]
[359828933,1746360659415,-884.08,0.00019945,2]
[359828935,1746360659425,-450.0,0.00019945,2]
[359828937,1746360659434,-538.49,0.00019945,2]
[359828939,1746360659443,-450.0,0.00019945,2]
[359828941,1746360659453,-450.0,0.00019945,2]
[359828943,1746360659462,-560.57,0.00019945,2]
[359828945,1746360659472,-558.02,0.00019945,2]
[359828947,1746360659482,-478.15,0.00019945,2]
[359828949,1746360659493,-2319.74,0.00019945,2]
[359828951,1746360659502,-517.26,0.00019945,2]
[359828953,1746360659512,-450.0,0.00019945,2]
[359828956,1746360659522,-468.75322173,0.00019945,2]
[359828958,1746360659532,-1551.52,0.00019945,2]
[359828960,1746360659541,-696.15,0.00019945,2]
[359828962,1746360659550,-450.0,0.00019945,2]
[359828964,1746360659560,-1341.96,0.00019945,2]
[359828966,1746360659570,-450.0,0.00019945,2]
[359828968,1746360659580,-456.26,0.00019945,2]
[359828970,1746360659590,-2906.44,0.00019945,2]
[359828972,1746360659599,-450.0,0.00019945,2]
[359828974,1746360659608,-1562.43,0.00019945,2]
[359828976,1746360659617,-28603.87,0.00019945,2]
[359828978,1746360659627,-450.0,0.00019945,2]
[359828980,1746360659636,-1463.69,0.00019945,2]
[359828982,1746360659646,-916.91,0.00019945,2]
[359828984,1746360659655,-637.41,0.00019945,2]
[359828986,1746360659665,-2659.44,0.00019945,2]
[359828988,1746360659675,-450.0,0.00019945,2]
[359828990,1746360659686,-4777.55,0.00019945,2]
[359828992,1746360659695,-2266.13,0.00019945,2]
[359828994,1746360659705,-450.0,0.00019945,2]
[359828996,1746360659715,-487.24,0.00019945,2]
[359828998,1746360659724,-272.379,0.00019949,2]
[359829000,1746360659734,-4010.0,0.00019949,2]
[359829019,1746360659910,-878.0,0.00019949,2]
[359829022,1746360659920,-6759.0,0.00019949,2]
[359829024,1746360659930,-878.0,0.00019949,2]
[359829026,1746360659939,-200.0,0.00019951,2]
[359829027,1746360659948,-200.0,0.00019951,2]
[359829030,1746360659958,-450.0,0.00019972,2]
[359829031,1746360659967,-450.0,0.00019972,2]
[359829033,1746360659977,-510.99,0.00019972,2]
[359829035,1746360659987,-450.0,0.00019972,2]
[359829037,1746360659996,-629.87,0.00019972,2]
[359829039,1746360660005,-450.0,0.00019972,2]
[359829041,1746360660014,-450.0,0.00019972,2]
[359829043,1746360660024,-450.0,0.00019972,2]
[359829045,1746360660033,-900.42,0.00019972,2]
[359829047,1746360660044,-450.0,0.00019972,2]
[359829049,1746360660054,-450.0,0.00019972,2]
[359829051,1746360660066,-450.0,0.00019972,2]
[359829053,1746360660076,-450.0,0.00019972,2]
[359829055,1746360660086,-539.41,0.00019972,2]
[359829057,1746360660095,-450.0,0.00019972,2]
[359829059,1746360660105,-1044.73,0.00019972,2]
[359829061,1746360660114,-452.35,0.00019972,2]
[359829063,1746360660123,-450.0,0.00019972,2]
[359829065,1746360660133,-662.38,0.00019972,2]
[359829067,1746360660143,-151.0,0.00019972,2]
[359829069,1746360660153,-450.0,0.00019972,2]
[359829071,1746360660162,-151.0,0.00019972,2]
[359829073,1746360660171,-170.122592,0.00019972,2]
[359829075,1746360660181,-170.122592,0.00019972,2]
[359829077,1746360660191,-151.0,0.00019972,2]
[359829079,1746360660200,-151.0,0.00019972,2]
[359829081,1746360660209,-151.0,0.00019972,2]
[359829083,1746360660219,-151.0,0.00019972,2]
[359829085,1746360660228,-1034.33,0.00019972,2]
[359829087,1746360660237,-151.0,0.00019972,2]
[359829089,1746360660246,-526.99,0.00019972,2]
[359829091,1746360660256,-151.0,0.00019972,2]
[359829093,1746360660265,-151.0,0.00019972,2]
[359829095,1746360660275,-1032.73,0.00019972,2]
[359829097,1746360660284,-151.0,0.00019972,2]
[359829099,1746360660294,-151.0,0.00019972,2]
[359829100,1746360660304,-151.0,0.00019972,2]
[359829103,1746360660314,-151.0,0.00019972,2]
[359829104,1746360660323,-151.0,0.00019972,2]
[359829106,1746360660332,-151.0,0.00019972,2]
[359829108,1746360660342,-151.0,0.00019972,2]
[359829110,1746360660351,-151.0,0.00019972,2]
[359829112,1746360660361,-450.0,0.00019972,2]
[359829114,1746360660370,-450.0,0.00019972,2]
[359829116,1746360660379,-433.69850384,0.00019972,2]
[359829118,1746360660388,-450.0,0.00019972,2]
[359829120,1746360660398,-573.93206428,0.00019972,2]
[359829122,1746360660407,-883.23,0.00019972,2]
[359829124,1746360660416,-2359.28,0.00019972,2]
[359829126,1746360660425,-693.57,0.00019972,2]
[359829128,1746360660435,-884.08,0.00019972,2]
[359829130,1746360660445,-450.0,0.00019972,2]
[359829132,1746360660455,-538.49,0.00019972,2]
[359829134,1746360660464,-450.0,0.00019972,2]
[359829136,1746360660474,-450.0,0.00019972,2]
[359829138,1746360660484,-560.57,0.00019972,2]
[359829140,1746360660494,-558.02,0.00019972,2]
[359829142,1746360660504,-478.15,0.00019972,2]
[359829144,1746360660514,-2319.74,0.00019972,2]
[359829146,1746360660523,-517.26,0.00019972,2]
[359829148,1746360660532,-450.0,0.00019972,2]
[359829150,1746360660542,-1551.52,0.00019972,2]
[359829152,1746360660552,-696.15,0.00019972,2]
[359829154,1746360660562,-450.0,0.00019972,2]
[359829155,1746360660571,-1341.96,0.00019972,2]
[359829157,1746360660580,-450.0,0.00019972,2]
[359829159,1746360660590,-456.26,0.00019972,2]
[359829161,1746360660600,-2906.44,0.00019972,2]
[359829163,1746360660609,-450.0,0.00019972,2]
[359829165,1746360660619,-1562.43,0.00019972,2]
[359829167,1746360660629,-28603.87,0.00019972,2]
[359829169,1746360660639,-375.35756717,0.00019972,2]
[359829171,1746360660648,-1463.69,0.00019972,2]
[359829173,1746360660657,-916.91,0.00019972,2]
[359829175,1746360660667,-637.41,0.00019972,2]
[359829177,1746360660676,-2659.44,0.00019972,2]
[359829179,1746360660686,-450.0,0.00019972,2]
[359829181,1746360660695,-4777.55,0.00019972,2]
[359829183,1746360660705,-2266.13,0.00019972,2]
[359829185,1746360660715,-450.0,0.00019972,2]
[359829187,1746360660724,-487.24,0.00019972,2]
[359829189,1746360660733,-1000.0,0.00019973,2]
[359829191,1746360660742,-3797.76869028,0.00019973,2]
[359829193,1746360660756,-1358.89812877,0.00019973,2]
[359829196,1746360660775,-5168.98567199,0.00019973,2]
[359829210,1746360660952,-450.0,0.00019726,2]
[359829211,1746360660962,-364.15739225,0.00019726,2]
[359829213,1746360660990,-85.84260775,0.00019726,2]
[359829215,1746360661000,-450.0,0.00019726,2]
[359829217,1746360661009,-450.0,0.00019753,2]
[359829219,1746360661019,-1005.78619638,0.000199,2]
[359829221,1746360661028,-2342.36041114,0.00019973,2]
[359829223,1746360661041,-4893.70123458,0.00019973,2]
[359829225,1746360661052,-926.29876542,0.00019973,2]
[359829232,1746360661108,-475.65,0.00019726,2]
[359829234,1746360661117,-450.0,0.00019726,2]
[359829236,1746360661126,-450.0,0.00019726,2]
[359829237,1746360661135,-5939.98709782,0.00019973,2]
[359829239,1746360661145,-300.0,0.00019973,2]
[359829241,1746360661154,-167.0,0.00019974,2]
[359829243,1746360661164,-31.01890218,0.00019974,2]
[359830087,1746360705475,250.0,0.00018928,2]
[359830088,1746360785913,151.433689,0.0003,31]
[359830089,1746360902688,1040.52,0.00016908,2]
[359830090,1746360902880,1040.52,0.00019172,2]
[359830091,1746360955980,154.43,0.00018817,2]
[359830092,1746360996539,168.776635,0.000288,30]
[359830093,1746361024650,-1219.58222132,0.00019626,2]
[359830094,1746361024673,-1219.58222125,0.00019656,2]
[359830095,1746361024695,-161.33345751,0.0001968,2]
[359830096,1746361024716,-1219.58222125,0.00019687,2]
[359830097,1746361024738,-1219.58222125,0.00019717,2]
[359830098,1746361024759,-300.0,0.00019724,2]
[359830099,1746361024780,-300.0,0.00019724,2]
[359830100,1746361024805,-1200.0,0.00019725,2]
[359830101,1746361024834,-500.0,0.00019725,2]
[359830102,1746361024862,-500.0,0.00019725,2]
[359830103,1746361024892,-500.0,0.00019725,2]
[359830104,1746361024920,-500.0,0.00019725,2]
[359830105,1746361024953,-500.0,0.00019725,2]
[359830106,1746361024982,-500.0,0.00019725,2]
[359830107,1746361025012,-500.0,0.00019725,2]
[359830108,1746361025042,-500.0,0.00019725,2]
[359830109,1746361025075,-500.0,0.00019725,2]
[359830110,1746361025105,-500.0,0.00019725,2]
[359830111,1746361025133,-500.0,0.00019725,2]
[359830112,1746361025163,-500.0,0.00019725,2]
[359830113,1746361025192,-500.0,0.00019725,2]
[359830114,1746361025221,-500.0,0.00019725,2]
[359830115,1746361025251,-500.0,0.00019725,2]
[359830116,1746361025280,-500.0,0.00019725,2]
[359830117,1746361025309,-500.0,0.00019725,2]
[359830118,1746361025336,-500.0,0.00019725,2]
[359830119,1746361025366,-500.0,0.00019725,2]
[359830120,1746361025395,-500.0,0.00019725,2]
[359830121,1746361025425,-500.0,0.00019725,2]
[359830122,1746361025455,-500.0,0.00019725,2]
[359830123,1746361025487,-577.30295303,0.00019725,2]
[359830124,1746361025522,-500.0,0.00019725,2]
[359830125,1746361025554,-500.0,0.00019725,2]
[359830126,1746361025582,-500.0,0.00019725,2]
[359830127,1746361025610,-350.0,0.00019725,2]
[359830128,1746361025633,-450.0,0.00019726,2]
[359830129,1746361025655,-477.12,0.00019726,2]
[359830130,1746361025680,-450.0,0.00019726,2]
[359830131,1746361025701,-450.0,0.00019726,2]
[359830132,1746361025722,-450.0,0.00019726,2]
[359830133,1746361025743,-450.0,0.00019726,2]
[359830134,1746361025764,-450.0,0.00019726,2]
[359830135,1746361025786,-355.93876211,0.00019726,2]
[359830136,1746361025808,-450.0,0.00019726,2]
[359830137,1746361025830,-450.0,0.00019726,2]
[359830138,1746361025852,-450.0,0.00019726,2]
[359830139,1746361025874,-489.46,0.00019726,2]
[359830140,1746361025894,-450.0,0.00019726,2]
[359830141,1746361025916,-495.35,0.00019726,2]
[359830142,1746361025937,-450.0,0.00019726,2]
[359830143,1746361025970,-465.56634054,0.00019726,2]
[359830144,1746361025993,-450.0,0.00019726,2]
[359830145,1746361026016,-450.0,0.00019726,2]
[359830146,1746361026037,-450.0,0.00019726,2]
[359830147,1746361026059,-450.00061829,0.00019726,2]
[359830148,1746361026085,-450.0,0.00019726,2]
[359830149,1746361026107,-450.0,0.00019726,2]
[359830150,1746361026131,-450.0,0.00019726,2]
[359830151,1746361026153,-450.0,0.00019726,2]
[359830152,1746361026175,-450.0,0.00019726,2]
[359830153,1746361026196,-450.0,0.00019726,2]
[359830154,1746361026221,-450.0,0.00019726,2]
[359830155,1746361026242,-450.0,0.00019726,2]
[359830156,1746361026264,-450.0,0.00019726,2]
[359830157,1746361026286,-450.0,0.00019726,2]
[359830158,1746361026308,-450.0,0.00019726,2]
[359830159,1746361026330,-450.0,0.00019726,2]
[359830160,1746361026352,-450.0,0.00019726,2]
[359830161,1746361026374,-450.0,0.00019726,2]
[359830162,1746361026396,-562.08,0.00019726,2]
[359830163,1746361026418,-538.8532877,0.00019726,2]
[359830164,1746361026440,-450.0,0.00019726,2]
[359830165,1746361026465,-450.0,0.00019726,2]
[359830166,1746361026488,-450.0,0.00019726,2]
[359830167,1746361026510,-450.0,0.00019726,2]
[359830168,1746361026532,-450.0,0.00019726,2]
[359830169,1746361026554,-450.0,0.00019726,2]
[359830170,1746361026576,-450.0,0.00019726,2]
[359830171,1746361026598,-450.0,0.00019726,2]
[359830172,1746361026620,-450.0,0.00019726,2]
[359830173,1746361026643,-450.0,0.00019726,2]
[359830174,1746361026664,-450.0,0.00019726,2]
[359830175,1746361026686,-450.0,0.00019726,2]
[359830176,1746361026710,-641.964982,0.00019726,2]
[359830177,1746361026731,-450.0,0.00019726,2]
[359830178,1746361026753,-567.04,0.00019726,2]
[359830179,1746361026778,-450.0,0.00019726,2]
[359830180,1746361026800,-450.0,0.00019726,2]
[359830181,1746361026822,-450.0,0.00019726,2]
[359830182,1746361027095,-450.0,0.00019726,2]
[359830183,1746361027117,-450.0,0.00019726,2]
[359830184,1746361027139,-450.0,0.00019726,2]
[359830185,1746361027160,-450.0,0.00019726,2]
[359830186,1746361027182,-450.0,0.00019726,2]
[359830187,1746361027203,-450.0,0.00019726,2]
[359830188,1746361027224,-450.0,0.00019726,2]
[359830189,1746361027245,-492.8,0.00019726,2]
[359830190,1746361027266,-450.0,0.00019726,2]
[359830191,1746361027287,-450.0,0.00019726,2]
[359830192,1746361027310,-450.0,0.00019726,2]
[359830193,1746361027332,-450.0,0.00019726,2]
[359830194,1746361027354,-450.0,0.00019726,2]
[359830195,1746361027376,-517.86,0.00019726,2]
[359830196,1746361027398,-450.0,0.00019726,2]
[359830197,1746361027419,-671.71,0.00019726,2]
[359830198,1746361027440,-450.0,0.00019726,2]
[359830199,1746361027462,-450.0,0.00019726,2]
[359830200,1746361027483,-450.0,0.00019726,2]
[359830201,1746361027504,-450.0,0.00019726,2]
[359830202,1746361027528,-450.0,0.00019726,2]
[359830203,1746361027549,-460.21,0.00019726,2]
[359830204,1746361027570,-450.0,0.00019726,2]
[359830205,1746361027591,-151.0,0.00019726,2]
[359830206,1746361027612,-481.13778708,0.00019726,2]
[359830207,1746361027633,-450.0,0.00019726,2]
[359830208,1746361027655,-450.0,0.00019726,2]
[359830209,1746361027675,-450.0,0.00019726,2]
[359830210,1746361027696,-459.74803943,0.00019726,2]
[359830211,1746361027718,-450.0,0.00019726,2]
[359830212,1746361027740,-450.0,0.00019726,2]
[359830213,1746361027762,-450.0,0.00019726,2]
[359830214,1746361027783,-450.0,0.00019726,2]
[359830215,1746361027804,-450.0,0.00019726,2]
[359830216,1746361027825,-534.45724344,0.00019726,2]
[359830217,1746361027846,-450.0,0.00019726,2]
[359830218,1746361027867,-450.0,0.00019726,2]
[359830219,1746361027888,-450.0,0.00019726,2]
[359830220,1746361027910,-300.0,0.00019726,2]
[359830221,1746361027932,-450.0,0.00019726,2]
[359830222,1746361027955,-450.0,0.00019726,2]
[359830223,1746361027975,-450.0,0.00019726,2]
[359830224,1746361027997,-450.0,0.00019726,2]
[359830225,1746361028018,-450.0,0.00019726,2]
[359830226,1746361028040,-450.0,0.00019726,2]
[359830227,1746361028062,-450.0,0.00019726,2]
[359830228,1746361028086,-450.0,0.00019726,2]
[359830229,1746361028107,-450.0,0.00019726,2]
[359830230,1746361028129,-487.50949024,0.00019726,2]
[359830231,1746361028151,-450.0,0.00019726,2]
[359830232,1746361028173,-450.0,0.00019726,2]
[359830233,1746361028195,-450.0,0.00019726,2]
[359830234,1746361028218,-450.0,0.00019726,2]
[359830235,1746361028240,-450.0,0.00019726,2]
[359830236,1746361028262,-450.0,0.00019726,2]
[359830237,1746361028284,-450.0,0.00019726,2]
[359830238,1746361028306,-450.0,0.00019726,2]
[359830239,1746361028327,-450.0,0.00019726,2]
[359830240,1746361028348,-450.0,0.00019726,2]
[359830241,1746361028372,-450.0,0.00019726,2]
[359830242,1746361028395,-450.0,0.00019726,2]
[359830243,1746361028418,-450.0,0.00019726,2]
[359830244,1746361028439,-450.0,0.00019726,2]
[359830245,1746361028461,-450.0,0.00019726,2]
[359830246,1746361028482,-450.0,0.00019726,2]
[359830247,1746361028504,-450.0,0.00019726,2]
[359830248,1746361028524,-450.0,0.00019726,2]
[359830249,1746361028546,-450.0,0.00019726,2]
[359830250,1746361028567,-450.0,0.00019726,2]
[359830251,1746361028589,-459.0295421,0.00019726,2]
[359830252,1746361028609,-450.0,0.00019726,2]
[359830253,1746361028632,-450.0,0.00019726,2]
[359830254,1746361028653,-450.0,0.00019726,2]
[359830255,1746361028676,-450.0,0.00019726,2]
[359830256,1746361028697,-450.0,0.00019726,2]
[359830257,1746361028718,-450.0,0.00019726,2]
[359830258,1746361028739,-453.06,0.00019726,2]
[359830259,1746361028760,-450.0,0.00019726,2]
[359830260,1746361028781,-450.0,0.00019726,2]
[359830261,1746361028802,-450.0,0.00019726,2]
[359830262,1746361028823,-531.63,0.00019726,2]
[359830263,1746361028846,-500.0,0.00019726,2]
[359830264,1746361028869,-500.0,0.00019726,2]
[359830265,1746361028891,-450.0,0.00019726,2]
[359830266,1746361028912,-450.0,0.00019726,2]
[359830267,1746361028934,-334.77542731,0.00019726,2]
[359830268,1746361028957,-158.03536438,0.00019726,2]
[359830269,1746361028980,-450.0,0.00019726,2]
[359830270,1746361029001,-450.0,0.00019726,2]
[359830271,1746361029023,-452.00734145,0.00019726,2]
[359830272,1746361029045,-450.0,0.00019726,2]
[359830273,1746361029068,-450.0,0.00019726,2]
[359830274,1746361029094,-775.82,0.00019726,2]
[359830275,1746361029114,-450.0,0.00019726,2]
[359830276,1746361029136,-450.0,0.00019726,2]
[359830277,1746361029158,-450.0,0.00019726,2]
[359830278,1746361029179,-450.0,0.00019726,2]
[359830279,1746361029200,-500.0,0.00019726,2]
[359830280,1746361029221,-500.0,0.00019726,2]
[359830281,1746361029243,-784.28,0.00019726,2]
[359830282,1746361029264,-593.19261331,0.00019726,2]
[359830283,1746361029285,-450.0,0.00019726,2]
[359830284,1746361029307,-587.51917562,0.00019726,2]
[359830285,1746361029327,-450.0,0.00019726,2]
[359830286,1746361029349,-450.0,0.00019726,2]
[359830287,1746361029372,-450.0,0.00019726,2]
[359830288,1746361029393,-201.27,0.00019726,2]
[359830289,1746361029414,-552.74,0.00019726,2]
[359830290,1746361029435,-450.0,0.00019726,2]
[359830291,1746361029456,-450.0,0.00019726,2]
[359830292,1746361029476,-450.0,0.00019726,2]
[359830293,1746361029497,-450.0,0.00019726,2]
[359830294,1746361029518,-450.0,0.00019726,2]
[359830295,1746361029539,-450.0,0.00019726,2]
[359830296,1746361029561,-1013.07,0.00019726,2]
[359830297,1746361029582,-450.0,0.00019726,2]
[359830298,1746361029604,-450.0,0.00019726,2]
[359830299,1746361029625,-450.0,0.00019726,2]
[359830300,1746361029646,-505.72372806,0.00019726,2]
[359830301,1746361029667,-450.0,0.00019726,2]
[359830302,1746361029688,-1671.15,0.00019726,2]
[359830303,1746361029708,-472.74151213,0.00019726,2]
[359830304,1746361029730,-450.0,0.00019726,2]
[359830305,1746361029751,-450.0,0.00019726,2]
[359830306,1746361029772,-872.42,0.00019726,2]
[359830307,1746361029793,-461.16882008,0.00019726,2]
[359830308,1746361029814,-450.0,0.00019726,2]
[359830309,1746361029836,-450.0,0.00019726,2]
[359830310,1746361029859,-2222.86,0.00019726,2]
[359830311,1746361029880,-626.22,0.00019726,2]
[359830312,1746361029901,-450.0,0.00019726,2]
[359830313,1746361029924,-450.0,0.00019726,2]
[359830314,1746361029945,-450.0,0.00019726,2]
[359830315,1746361029966,-465.1726415,0.00019726,2]
[359830316,1746361029989,-450.0,0.00019726,2]
[359830317,1746361030013,-924.21,0.00019726,2]
[359830318,1746361030035,-583.24,0.00019726,2]
[359830319,1746361030057,-450.0,0.00019726,2]
[359830320,1746361030082,-450.0,0.00019726,2]
[359830321,1746361030105,-450.0,0.00019726,2]
[359830322,1746361030128,-450.0,0.00019726,2]
[359830323,1746361030151,-450.0,0.00019726,2]
[359830324,1746361030174,-1739.8,0.00019726,2]
[359830325,1746361030195,-450.62876082,0.00019726,2]
[359830326,1746361030216,-450.0,0.00019726,2]
[359830327,1746361030236,-450.0,0.00019726,2]
[359830328,1746361030258,-625.62,0.00019726,2]
[359830329,1746361030280,-1163.64,0.00019726,2]
[359830330,1746361030302,-450.0,0.00019726,2]
[359830331,1746361030323,-343.12,0.00019726,2]
[359830332,1746361030344,-1006.47,0.00019726,2]
[359830333,1746361030517,-450.0,0.00019726,2]
[359830334,1746361030539,-516.72,0.00019726,2]
[359830335,1746361030560,-500.0,0.00019726,2]
[359830336,1746361030582,-450.0,0.00019726,2]
[359830337,1746361030603,-450.0,0.00019726,2]
[359830338,1746361030625,-450.0,0.00019726,2]
[359830339,1746361030646,-450.0,0.00019726,2]
[359830340,1746361030668,-1171.82,0.00019726,2]
[359830341,1746361030689,-450.0,0.00019726,2]
[359830342,1746361030710,-450.0,0.00019726,2]
[359830343,1746361030732,-450.0,0.00019726,2]
[359830344,1746361030753,-450.0,0.00019726,2]
[359830345,1746361030775,-450.0,0.00019726,2]
[359830346,1746361030795,-450.0,0.00019726,2]
[359830347,1746361030818,-450.0,0.00019726,2]
[359830348,1746361030843,-450.0,0.00019726,2]
[359830349,1746361030865,-450.0,0.00019726,2]
[359830350,1746361030888,-21452.9,0.00019726,2]
[359830351,1746361030911,-483.49,0.00019726,2]
[359830352,1746361030933,-192.52614698,0.00019726,2]
[359830353,1746361030955,-450.0,0.00019726,2]
[359830354,1746361030977,-450.0,0.00019726,2]
[359830355,1746361030999,-450.0,0.00019726,2]
[359830356,1746361031021,-205.57904787,0.00019726,2]
[359830357,1746361031043,-450.0,0.00019726,2]
[359830358,1746361031066,-450.0,0.00019726,2]
[359830359,1746361031091,-450.0,0.00019726,2]
[359830360,1746361031114,-579.73255732,0.00019726,2]
[359830361,1746361031135,-1175.08,0.00019726,2]
[359830362,1746361031158,-500.0,0.00019726,2]
[359830363,1746361031179,-450.0,0.00019726,2]
[359830364,1746361031200,-450.0,0.00019726,2]
[359830365,1746361031221,-453.77,0.00019726,2]
[359830366,1746361031244,-450.0,0.00019726,2]
[359830367,1746361031265,-450.0,0.00019726,2]
[359830368,1746361031287,-450.0,0.00019726,2]
[359830369,1746361031308,-7121.29,0.00019726,2]
[359830370,1746361031330,-450.0,0.00019726,2]
[359830371,1746361031353,-450.0,0.00019726,2]
[359830372,1746361031375,-450.0,0.00019726,2]
[359830373,1746361031398,-450.0,0.00019726,2]
[359830374,1746361031420,-450.0,0.00019726,2]
[359830375,1746361031442,-450.0,0.00019726,2]
[359830376,1746361031464,-450.0,0.00019726,2]
[359830377,1746361031489,-461.92,0.00019726,2]
[359830378,1746361031513,-451.5,0.00019726,2]
[359830379,1746361031535,-450.0,0.00019726,2]
[359830380,1746361031560,-450.0,0.00019726,2]
[359830381,1746361031586,-514.08,0.00019726,2]
[359830382,1746361031608,-450.0,0.00019726,2]
[359830383,1746361031631,-616.41,0.00019726,2]
[359830384,1746361031655,-450.0,0.00019726,2]
[359830385,1746361031676,-450.0,0.00019726,2]
[359830386,1746361031697,-450.0,0.00019726,2]
[359830387,1746361031719,-450.0,0.00019726,2]
[359830388,1746361031741,-450.0,0.00019726,2]
[359830389,1746361031763,-3384.1,0.00019726,2]
[359830390,1746361031785,-450.0,0.00019726,2]
[359830391,1746361031806,-450.0,0.00019726,2]
[359830392,1746361031827,-522.11,0.00019726,2]